fUST/lending_fUST_20240723
["ID","MTS","AMOUNT","RATE_DAILY","PERIOD"]
[333004339,1721740265407,-500.0,0.00014794,2]
[333004340,1721740265418,-360.76,0.00014794,2]
[333004341,1721740265429,-500.0,0.00014794,2]
[333004342,1721740265438,-500.0,0.00014794,2]
[333004343,1721740265450,-500.0,0.00014794,2]
[333004344,1721740265460,-419.15,0.00014794,2]
[333004345,1721740265472,-500.0,0.00014794,2]
[333004346,1721740265482,-500.0,0.00014794,2]
[333004347,1721740265491,-500.0,0.00014794,2]
[333004348,1721740265501,-500.0,0.00014794,2]
[333004349,1721740265512,-532.32,0.00014794,2]
[333004350,1721740265521,-500.0,0.00014794,2]
[333004351,1721740265531,-500.0,0.00014794,2]
[333004352,1721740265541,-500.0,0.00014794,2]
[333004353,1721740265551,-500.0,0.00014794,2]
[333004354,1721740265560,-500.0,0.00014794,2]
[333004355,1721740265570,-500.0,0.00014794,2]
[333004356,1721740265580,-252.79,0.00014794,2]
[333004357,1721740265589,-500.0,0.00014794,2]
[333004358,1721740265598,-500.0,0.00014794,2]
[333004359,1721740265608,-500.0,0.00014794,2]
[333004360,1721740265619,-404.86305693,0.00014794,2]
[333004361,1721740265631,-1930.55,0.00014794,2]
[333004362,1721740265641,-490.77,0.00014794,2]
[333004363,1721740265650,-500.0,0.00014794,2]
[333004364,1721740265660,-500.0,0.00014794,2]
[333004365,1721740265670,-500.0,0.00014794,2]
[333004366,1721740265681,-571.24,0.00014794,2]
[333004367,1721740265690,-591.82,0.00014794,2]
[333004368,1721740265699,-283.76,0.00014794,2]
[333004369,1721740265709,-500.0,0.00014794,2]
[333004370,1721740265719,-500.0,0.00014794,2]
[333004371,1721740265729,-500.0,0.00014794,2]
[333004372,1721740265739,-500.0,0.00014794,2]
[333004373,1721740265749,-500.0,0.00014794,2]
[333004374,1721740265760,-500.0,0.00014794,2]
[333004375,1721740265770,-500.0,0.00014794,2]
[333004376,1721740265780,-500.0,0.00014794,2]
[333004377,1721740265789,-349.57,0.00014794,2]
[333004378,1721740265798,-478.67936912,0.00014794,2]
[333004379,1721740265808,-500.0,0.00014794,2]
[333004380,1721740265821,-500.0,0.00014794,2]
[333004381,1721740265833,-331.2,0.00014794,2]
[333004382,1721740265843,-1859.28,0.00014794,2]
[333004383,1721740265853,-500.0,0.00014794,2]
[333004384,1721740265863,-391.31,0.00014794,2]
[333004385,1721740265873,-649.87,0.00014794,2]
[333004386,1721740265882,-500.0,0.00014794,2]
[333004387,1721740265892,-583.22792061,0.00014794,2]
[333004388,1721740265901,-500.0,0.00014794,2]
[333004389,1721740265910,-500.0,0.00014794,2]
[333004390,1721740265921,-324.94,0.00014794,2]
[333004391,1721740265931,-500.0,0.00014794,2]
[333004392,1721740265944,-500.0,0.00014794,2]
[333004393,1721740265957,-646.82,0.00014794,2]
[333004394,1721740265968,-500.0,0.00014794,2]
[333004395,1721740265977,-500.0,0.00014794,2]
[333004396,1721740265986,-500.0,0.00014794,2]
[333004397,1721740265996,-500.0,0.00014794,2]
[333004398,1721740266005,-589.17,0.00014794,2]
[333004399,1721740266015,-500.0,0.00014794,2]
[333004400,1721740266027,-544.91,0.00014794,2]
[333004401,1721740266039,-500.0,0.00014794,2]
[333004402,1721740266049,-467.62,0.00014794,2]
[333004403,1721740266058,-545.46,0.00014794,2]
[333004404,1721740266068,-525.57,0.00014794,2]
[333004405,1721740266078,-500.0,0.00014794,2]
[333004406,1721740266088,-364.81,0.00014794,2]
[333004407,1721740266097,-207.79,0.00014794,2]
[333004408,1721740266107,-446.89,0.00014794,2]
[333004409,1721740266117,-185.93,0.00014794,2]
[333004410,1721740266126,-430.85,0.00014794,2]
[333004411,1721740266136,-556.41,0.00014794,2]
[333004412,1721740266146,-472.27,0.00014794,2]
[333004413,1721740266155,-500.0,0.00014794,2]
[333004414,1721740266165,-500.0,0.00014794,2]
[333004415,1721740266175,-500.0,0.00014794,2]
[333004416,1721740266188,-500.0,0.00014794,2]
[333004417,1721740266200,-250.1,0.00014794,2]
[333004418,1721740266213,-500.0,0.00014794,2]
[333004419,1721740266222,-344.93,0.00014794,2]
[333004420,1721740266235,-150.12,0.00014794,2]
[333004421,1721740266247,-369.26,0.00014794,2]
[333004422,1721740266258,-236.11,0.00014794,2]
[333004423,1721740266271,-585.59,0.00014794,2]
[333004424,1721740266280,-469.65,0.00014794,2]
[333004425,1721740266290,-500.0,0.00014794,2]
[333004426,1721740266300,-514.72,0.00014794,2]
[333004427,1721740266310,-500.0,0.00014794,2]
[333004428,1721740266321,-413.47475464,0.00014794,2]
[333004429,1721740266332,-246.23,0.00014794,2]
[333004430,1721740266344,-270.54,0.00014794,2]
[333004431,1721740266354,-366.75,0.00014794,2]
[333004432,1721740266364,-500.0,0.00014794,2]
[333004433,1721740266375,-1122.55,0.00014794,2]
[333004434,1721740266385,-500.0,0.00014794,2]
[333004435,1721740266395,-500.0,0.00014794,2]
[333004436,1721740266406,-653.4,0.00014794,2]
[333004437,1721740266417,-3152.33,0.00014794,2]
[333004438,1721740266429,-500.0,0.00014794,2]
[333004439,1721740266440,-500.0,0.00014794,2]
[333004440,1721740266450,-185.03,0.00014794,2]
[333004441,1721740266460,-500.0,0.00014794,2]
[333004442,1721740266470,-568.27,0.00014794,2]
[333004443,1721740266479,-932.31,0.00014794,2]
[333004444,1721740266489,-500.0,0.00014794,2]
[333004445,1721740266499,-408.54,0.00014794,2]
[333004446,1721740266508,-500.0,0.00014794,2]
[333004447,1721740266519,-500.0,0.00014794,2]
[333004448,1721740266528,-500.0,0.00014794,2]
[333004449,1721740266538,-500.0,0.00014794,2]
[333004450,1721740266548,-513.0,0.00014794,2]
[333004451,1721740266558,-500.0,0.00014794,2]
[333004452,1721740266568,-388.12,0.00014794,2]
[333004453,1721740266577,-617.63,0.00014794,2]
[333004454,1721740266587,-500.0,0.00014794,2]
[333004455,1721740266597,-500.0,0.00014794,2]
[333004456,1721740266606,-529.69,0.00014794,2]
[333004457,1721740266618,-411.86,0.00014794,2]
[333004458,1721740266628,-560.81,0.00014794,2]
[333004459,1721740266638,-185.03,0.00014794,2]
[333004460,1721740266649,-500.0,0.00014794,2]
[333004461,1721740266659,-337.32,0.00014794,2]
[333004462,1721740266669,-500.0,0.00014794,2]
[333004463,1721740266679,-499.04,0.00014794,2]
[333004464,1721740266688,-500.0,0.00014794,2]
[333004465,1721740266697,-500.0,0.00014794,2]
[333004466,1721740266706,-172.36,0.00014794,2]
[333004467,1721740266715,-500.0,0.00014794,2]
[333004468,1721740266726,-500.0,0.00014794,2]
[333004469,1721740266736,-462.06,0.00014794,2]
[333004470,1721740266745,-575.13,0.00014794,2]
[333004471,1721740266755,-500.0,0.00014794,2]
[333004472,1721740266764,-500.0,0.00014794,2]
[333004473,1721740266774,-232.48,0.00014794,2]
[333004474,1721740266784,-500.0,0.00014794,2]
[333004475,1721740266793,-500.0,0.00014794,2]
[333004476,1721740266803,-500.0,0.00014794,2]
[333004477,1721740266813,-500.0,0.00014794,2]
[333004478,1721740266822,-500.0,0.00014794,2]
[333004479,1721740266833,-500.0,0.00014794,2]
[333004480,1721740266843,-500.0,0.00014794,2]
[333004481,1721740266852,-500.0,0.00014794,2]
[333004482,1721740266862,-500.0,0.00014794,2]
[333004483,1721740266874,-550.24,0.00014794,2]
[333004484,1721740266885,-500.0,0.00014794,2]
[333004485,1721740266894,-265.96,0.00014794,2]
[333004486,1721740266905,-500.0,0.00014794,2]
[333004487,1721740266915,-500.0,0.00014794,2]
[333004488,1721740266925,-500.0,0.00014794,2]
[333004489,1721740266936,-574.08,0.00014794,2]
[333004490,1721740266947,-500.0,0.00014794,2]
[333004491,1721740266958,-500.0,0.00014794,2]
[333004492,1721740266969,-500.0,0.00014794,2]
[333004493,1721740266979,-500.0,0.00014794,2]
[333004494,1721740266989,-500.0,0.00014794,2]
[333004495,1721740266999,-500.0,0.00014794,2]
[333004496,1721740267009,-339.55,0.00014794,2]
[333004497,1721740267019,-500.0,0.00014794,2]
[333004498,1721740267029,-500.0,0.00014794,2]
[333004499,1721740267040,-501.49,0.00014794,2]
[333004500,1721740267049,-500.0,0.00014794,2]
[333004501,1721740267060,-500.0,0.00014794,2]
[333004502,1721740267070,-500.0,0.00014794,2]
[333004503,1721740267080,-500.0,0.00014794,2]
[333004504,1721740267089,-500.0,0.00014794,2]
[333004505,1721740267098,-500.0,0.00014794,2]
[333004506,1721740267107,-500.0,0.00014794,2]
[333004507,1721740267118,-500.0,0.00014794,2]
[333004508,1721740267128,-500.0,0.00014794,2]
[333004509,1721740267137,-529.69,0.00014794,2]
[333004510,1721740267147,-175.93,0.00014794,2]
[333004511,1721740267157,-500.0,0.00014794,2]
[333004512,1721740267167,-500.0,0.00014794,2]
[333004513,1721740267177,-500.0,0.00014794,2]
[333004514,1721740267191,-500.0,0.00014794,2]
[333004515,1721740267201,-500.0,0.00014794,2]
[333004516,1721740267212,-500.0,0.00014794,2]
[333004517,1721740267222,-500.0,0.00014794,2]
[333004518,1721740267233,-500.0,0.00014794,2]
[333004519,1721740267243,-500.0,0.00014794,2]
[333004520,1721740267253,-500.0,0.00014794,2]
[333004521,1721740267268,-500.0,0.00014794,2]
[333004522,1721740267279,-500.0,0.00014794,2]
[333004523,1721740267289,-500.0,0.00014794,2]
[333004524,1721740267299,-500.0,0.00014794,2]
[333004525,1721740267310,-177.52,0.00014794,2]
[333004526,1721740267320,-500.0,0.00014794,2]
[333004527,1721740267330,-500.0,0.00014794,2]
[333004528,1721740267340,-500.0,0.00014794,2]
[333004529,1721740267350,-500.0,0.00014794,2]
[333004530,1721740267360,-500.0,0.00014794,2]
[333004531,1721740267372,-500.0,0.00014794,2]
[333004532,1721740267382,-289.68,0.00014794,2]
[333004533,1721740267392,-500.0,0.00014794,2]
[333004534,1721740267401,-500.0,0.00014794,2]
[333004535,1721740267411,-500.0,0.00014794,2]
[333004536,1721740267421,-500.0,0.00014794,2]
[333004537,1721740267431,-489.55,0.00014794,2]
[333004538,1721740267441,-500.0,0.00014794,2]
[333004539,1721740267451,-500.0,0.00014794,2]
[333004540,1721740267461,-500.0,0.00014794,2]
[333004541,1721740267471,-500.0,0.00014794,2]
[333004542,1721740267481,-500.0,0.00014794,2]
[333004543,1721740267491,-500.0,0.00014794,2]
[333004544,1721740267501,-500.0,0.00014794,2]
[333004545,1721740267512,-238.0,0.00014794,2]
[333004546,1721740267522,-537.91,0.00014794,2]
[333004547,1721740267532,-500.0,0.00014794,2]
[333004548,1721740267542,-750.77,0.00014794,2]
[333004549,1721740267552,-500.0,0.00014794,2]
[333004550,1721740267562,-989.07,0.00014794,2]
[333004551,1721740267572,-2970.29,0.00014794,2]
[333004552,1721740267582,-852.32,0.00014794,2]
[333004553,1721740267592,-962.92,0.00014794,2]
[333004554,1721740267602,-817.37,0.00014794,2]
[333004555,1721740267612,-172.58,0.00014794,2]
[333004556,1721740267626,-1874.8,0.00014794,2]
[333004557,1721740267636,-500.0,0.00014794,2]
[333004558,1721740267648,-707.68,0.00014794,2]
[333004559,1721740267660,-500.0,0.00014794,2]
[333004560,1721740267672,-439.03,0.00014794,2]
[333004561,1721740267682,-181.36,0.00014794,2]
[333004562,1721740267692,-500.0,0.00014794,2]
[333004563,1721740267701,-500.0,0.00014794,2]
[333004564,1721740267712,-500.0,0.00014794,2]
[333004565,1721740267723,-500.0,0.00014794,2]
[333004566,1721740267733,-302.1,0.00014794,2]
[333004567,1721740267743,-500.0,0.00014794,2]
[333004568,1721740267753,-295.0,0.00014794,2]
[333004569,1721740267763,-500.0,0.00014794,2]
[333004570,1721740267773,-206.18,0.00014794,2]
[333004571,1721740267783,-407.13,0.00014794,2]
[333004572,1721740267792,-756.14,0.00014794,2]
[333004573,1721740267802,-500.0,0.00014794,2]
[333004574,1721740267812,-874.06,0.00014794,2]
[333004575,1721740267821,-865.53,0.00014794,2]
[333004576,1721740267831,-2288.55,0.00014794,2]
[333004577,1721740267841,-942.56,0.00014794,2]
[333004578,1721740267850,-500.0,0.00014794,2]
[333004579,1721740267860,-860.04,0.00014794,2]
[333004580,1721740267870,-500.0,0.00014794,2]
[333004581,1721740267880,-266.66,0.00014794,2]
[333004582,1721740267890,-1828.4,0.00014794,2]
[333004583,1721740267900,-1205.06,0.00014794,2]
[333004584,1721740267910,-500.0,0.00014794,2]
[333004585,1721740267922,-563.99,0.00014794,2]
[333004586,1721740267936,-206.21,0.00014794,2]
[333004587,1721740267948,-500.0,0.00014794,2]
[333004588,1721740267960,-644.75,0.00014794,2]
[333004589,1721740267971,-598.09,0.00014794,2]
[333004590,1721740267981,-500.0,0.00014794,2]
[333004591,1721740267992,-639.45,0.00014794,2]
[333004592,1721740268003,-500.0,0.00014794,2]
[333004593,1721740268014,-500.0,0.00014794,2]
[333004594,1721740268024,-687.05,0.00014794,2]
[333004595,1721740268036,-500.0,0.00014794,2]
[333004596,1721740268047,-154.8,0.00014794,2]
[333004597,1721740268058,-500.0,0.00014794,2]
[333004598,1721740268068,-517.54,0.00014794,2]
[333004599,1721740268078,-500.0,0.00014794,2]
[333004600,1721740268088,-500.0,0.00014794,2]
[333004601,1721740268098,-556.37,0.00014794,2]
[333004602,1721740268108,-500.0,0.00014794,2]
[333004603,1721740268118,-358.4,0.00014794,2]
[333004604,1721740268129,-500.0,0.00014794,2]
[333004605,1721740268139,-500.0,0.00014794,2]
[333004606,1721740268151,-500.0,0.00014794,2]
[333004607,1721740268163,-500.0,0.00014794,2]
[333004608,1721740268175,-500.0,0.00014794,2]
[333004609,1721740268186,-586.94,0.00014794,2]
[333004610,1721740268199,-500.0,0.00014794,2]
[333004611,1721740268212,-500.0,0.00014794,2]
[333004612,1721740268224,-500.0,0.00014794,2]
[333004613,1721740268237,-500.0,0.00014794,2]
[333004614,1721740268250,-500.0,0.00014794,2]
[333004615,1721740268262,-500.0,0.00014794,2]
[333004616,1721740268275,-500.0,0.00014794,2]
[333004617,1721740268287,-500.0,0.00014794,2]
[333004618,1721740268459,-500.0,0.00014794,2]
[333004619,1721740268468,-500.0,0.00014794,2]
[333004620,1721740268477,-500.0,0.00014794,2]
[333004621,1721740268487,-500.0,0.00014794,2]
[333004622,1721740268496,-500.0,0.00014794,2]
[333004623,1721740268505,-500.0,0.00014794,2]
[333004624,1721740268516,-500.0,0.00014794,2]
[333004625,1721740268525,-500.0,0.00014794,2]
[333004626,1721740268535,-500.0,0.00014794,2]
[333004627,1721740268545,-500.0,0.00014794,2]
[333004628,1721740268555,-500.0,0.00014794,2]
[333004629,1721740268564,-500.0,0.00014794,2]
[333004630,1721740268573,-244.68,0.00014794,2]
[333004631,1721740268583,-500.0,0.00014794,2]
[333004632,1721740268592,-500.0,0.00014794,2]
[333004633,1721740268602,-633.99,0.00014794,2]
[333004634,1721740268611,-500.0,0.00014794,2]
[333004635,1721740268623,-351.43,0.00014794,2]
[333004636,1721740268633,-500.0,0.00014794,2]
[333004637,1721740268643,-500.0,0.00014794,2]
[333004638,1721740268652,-500.0,0.00014794,2]
[333004639,1721740268662,-500.0,0.00014794,2]
[333004640,1721740268672,-500.0,0.00014794,2]
[333004641,1721740268681,-500.0,0.00014794,2]
[333004642,1721740268691,-500.0,0.00014794,2]
[333004643,1721740268701,-279.02,0.00014794,2]
[333004644,1721740268711,-500.0,0.00014794,2]
[333004645,1721740268721,-500.0,0.00014794,2]
[333004646,1721740268731,-500.0,0.00014794,2]
[333004647,1721740268740,-500.0,0.00014794,2]
[333004648,1721740268750,-500.0,0.00014794,2]
[333004649,1721740268760,-500.0,0.00014794,2]
[333004650,1721740268770,-500.0,0.00014794,2]
[333004651,1721740268780,-500.0,0.00014794,2]
[333004652,1721740268789,-500.0,0.00014794,2]
[333004653,1721740268799,-500.0,0.00014794,2]
[333004654,1721740268810,-500.0,0.00014794,2]
[333004655,1721740268821,-500.0,0.00014794,2]
[333004656,1721740268832,-207.34,0.00014794,2]
[333004657,1721740268844,-500.0,0.00014794,2]
[333004658,1721740268853,-500.0,0.00014794,2]
[333004659,1721740268864,-240.81,0.00014794,2]
[333004660,1721740268876,-500.0,0.00014794,2]
[333004661,1721740268886,-500.0,0.00014794,2]
[333004662,1721740268896,-500.0,0.00014794,2]
[333004663,1721740268906,-500.0,0.00014794,2]
[333004664,1721740268919,-500.0,0.00014794,2]
[333004665,1721740268931,-576.35,0.00014794,2]
[333004666,1721740268941,-500.0,0.00014794,2]
[333004667,1721740268952,-500.0,0.00014794,2]
[333004668,1721740268961,-500.0,0.00014794,2]
[333004669,1721740268972,-500.0,0.00014794,2]
[333004670,1721740268981,-500.0,0.00014794,2]
[333004671,1721740268991,-500.0,0.00014794,2]
[333004672,1721740269001,-500.0,0.00014794,2]
[333004673,1721740269010,-500.0,0.00014794,2]
[333004674,1721740269020,-500.0,0.00014794,2]
[333004675,1721740269030,-503.85599657,0.00014794,2]
[333004676,1721740269040,-500.0,0.00014794,2]
[333004677,1721740269051,-500.0,0.00014794,2]
[333004678,1721740269062,-339.76,0.00014794,2]
[333004679,1721740269072,-537.71619265,0.00014794,2]
[333004680,1721740269083,-500.0,0.00014794,2]
[333004681,1721740269094,-500.0,0.00014794,2]
[333004682,1721740269106,-500.0,0.00014794,2]
[333004683,1721740269119,-500.0,0.00014794,2]
[333004684,1721740269130,-500.0,0.00014794,2]
[333004685,1721740269141,-500.0,0.00014794,2]
[333004686,1721740269152,-500.0,0.00014794,2]
[333004687,1721740269163,-417.89309372,0.00014794,2]
[333004688,1721740269173,-500.0,0.00014794,2]
[333004689,1721740269182,-500.0,0.00014794,2]
[333004690,1721740269197,-500.0,0.00014794,2]
[333004691,1721740269207,-500.0,0.00014794,2]
[333004692,1721740269216,-500.0,0.00014794,2]
[333004693,1721740269226,-500.0,0.00014794,2]
[333004694,1721740269237,-290.09,0.00014794,2]
[333004695,1721740269246,-438.48,0.00014794,2]
[333004696,1721740269256,-500.0,0.00014794,2]
[333004697,1721740269266,-500.0,0.00014794,2]
[333004698,1721740269276,-500.0,0.00014794,2]
[333004699,1721740269286,-500.0,0.00014794,2]
[333004700,1721740269296,-515.97,0.00014794,2]
[333004701,1721740269305,-500.0,0.00014794,2]
[333004702,1721740269315,-500.0,0.00014794,2]
[333004703,1721740269324,-503.88434184,0.00014794,2]
[333004704,1721740269334,-500.0,0.00014794,2]
[333004705,1721740269344,-500.0,0.00014794,2]
[333004706,1721740269354,-212.73,0.00014794,2]
[333004707,1721740269363,-505.51260469,0.00014794,2]
[333004708,1721740269373,-500.0,0.00014794,2]
[333004709,1721740269383,-500.0,0.00014794,2]
[333004710,1721740269392,-500.0,0.00014794,2]
[333004711,1721740269402,-500.0,0.00014794,2]
[333004712,1721740269411,-500.0,0.00014794,2]
[333004713,1721740269421,-500.0,0.00014794,2]
[333004714,1721740269432,-500.0,0.00014794,2]
[333004715,1721740269441,-500.0,0.00014794,2]
[333004716,1721740269451,-500.0,0.00014794,2]
[333004717,1721740269460,-500.0,0.00014794,2]
[333004718,1721740269470,-500.0,0.00014794,2]
[333004719,1721740269479,-500.0,0.00014794,2]
[333004720,1721740269489,-500.0,0.00014794,2]
[333004721,1721740269498,-500.0,0.00014794,2]
[333004722,1721740269507,-500.0,0.00014794,2]
[333004723,1721740269516,-288.22,0.00014794,2]
[333004724,1721740269525,-500.0,0.00014794,2]
[333004725,1721740269535,-223.7,0.00014794,2]
[333004726,1721740269545,-500.0,0.00014794,2]
[333004727,1721740269554,-500.0,0.00014794,2]
[333004728,1721740269563,-503.34518189,0.00014794,2]
[333004729,1721740269573,-164.7,0.00014794,2]
[333004730,1721740269582,-500.0,0.00014794,2]
[333004731,1721740269591,-503.41014375,0.00014794,2]
[333004732,1721740269601,-569.47197239,0.00014794,2]
[333004733,1721740269611,-553.1774585,0.00014794,2]
[333004734,1721740269620,-500.0,0.00014794,2]
[333004735,1721740269630,-513.40465997,0.00014794,2]
[333004736,1721740269640,-480.65,0.00014794,2]
[333004737,1721740269650,-500.0,0.00014794,2]
[333004738,1721740269660,-206.84,0.00014794,2]
[333004739,1721740269670,-500.0,0.00014794,2]
[333004740,1721740269679,-500.0,0.00014794,2]
[333004741,1721740269689,-500.0,0.00014794,2]
[333004742,1721740269699,-500.0,0.00014794,2]
[333004743,1721740269708,-500.0,0.00014794,2]
[333004744,1721740269718,-500.0,0.00014794,2]
[333004745,1721740269728,-500.0,0.00014794,2]
[333004746,1721740269737,-500.0,0.00014794,2]
[333004747,1721740269747,-500.0,0.00014794,2]
[333004748,1721740269756,-222.6858724,0.00014794,2]
[333004749,1721740269765,-393.97,0.00014794,2]
[333004750,1721740269774,-500.0,0.00014794,2]
[333004751,1721740269784,-473.9,0.00014794,2]
[333004752,1721740269793,-500.0,0.00014794,2]
[333004753,1721740269803,-500.0,0.00014794,2]
[333004754,1721740269812,-500.0,0.00014794,2]
[333004755,1721740269822,-500.0,0.00014794,2]
[333004756,1721740269831,-500.0,0.00014794,2]
[333004757,1721740269840,-500.0,0.00014794,2]
[333004758,1721740269850,-500.34,0.00014794,2]
[333004759,1721740269859,-500.0,0.00014794,2]
[333004760,1721740269868,-500.0,0.00014794,2]
[333004761,1721740269880,-500.0,0.00014794,2]
[333004762,1721740269890,-500.0,0.00014794,2]
[333004763,1721740269903,-500.0,0.00014794,2]
[333004764,1721740269912,-500.0,0.00014794,2]
[333004765,1721740269921,-500.0,0.00014794,2]
[333004766,1721740269930,-500.0,0.00014794,2]
[333004767,1721740269939,-500.0,0.00014794,2]
[333004768,1721740269949,-357.13446325,0.00014794,2]
[333004769,1721740269958,-500.0,0.00014794,2]
[333004770,1721740269967,-500.0,0.00014794,2]
[333004771,1721740269976,-500.0,0.00014794,2]
[333004772,1721740269985,-500.0,0.00014794,2]
[333004773,1721740269996,-500.0,0.00014794,2]
[333004774,1721740270006,-500.0,0.00014794,2]
[333004775,1721740270015,-500.0,0.00014794,2]
[333004776,1721740270025,-500.0,0.00014794,2]
[333004777,1721740270035,-500.0,0.00014794,2]
[333004778,1721740270044,-500.0,0.00014794,2]
[333004779,1721740270054,-619.85,0.00014794,2]
[333004780,1721740270066,-500.0,0.00014794,2]
[333004781,1721740270075,-500.0,0.00014794,2]
[333004782,1721740270086,-500.0,0.00014794,2]
[333004783,1721740270095,-500.0,0.00014794,2]
[333004784,1721740270104,-500.0,0.00014794,2]
[333004785,1721740270113,-500.0,0.00014794,2]
[333004786,1721740270122,-500.0,0.00014794,2]
[333004787,1721740270131,-500.0,0.00014794,2]
[333004788,1721740270142,-500.0,0.00014794,2]
[333004789,1721740270153,-500.0,0.00014794,2]
[333004790,1721740270163,-500.0,0.00014794,2]
[333004791,1721740270173,-251.76,0.00014794,2]
[333004792,1721740270182,-500.0,0.00014794,2]
[333004793,1721740270195,-500.0,0.00014794,2]
[333004794,1721740270207,-500.0,0.00014794,2]
[333004795,1721740270218,-500.0,0.00014794,2]
[333004796,1721740270228,-500.0,0.00014794,2]
[333004797,1721740270239,-307.54,0.00014794,2]
[333004798,1721740270250,-500.0,0.00014794,2]
[333004799,1721740270261,-505.30694748,0.00014794,2]
[333004800,1721740270271,-500.0,0.00014794,2]
[333004801,1721740270280,-500.0,0.00014794,2]
[333004802,1721740270290,-500.0,0.00014794,2]
[333004803,1721740270299,-500.0,0.00014794,2]
[333004804,1721740270309,-151.0,0.00014794,2]
[333004805,1721740270318,-151.0,0.00014794,2]
[333004806,1721740270327,-273.691927,0.00014794,2]
[333004807,1721740270337,-541.86,0.00014794,2]
[333004808,1721740270346,-500.0,0.00014794,2]
[333004809,1721740270356,-767.29,0.00014794,2]
[333004810,1721740270365,-675.13,0.00014794,2]
[333004811,1721740270376,-1318.95,0.00014794,2]
[333004812,1721740270385,-839.94,0.00014794,2]
[333004813,1721740270394,-662.7,0.00014794,2]
[333004814,1721740270403,-500.0,0.00014794,2]
[333004815,1721740270413,-500.0,0.00014794,2]
[333004816,1721740270422,-1581.52,0.00014794,2]
[333004817,1721740270432,-396.43,0.00014794,2]
[333004818,1721740270441,-580.18,0.00014794,2]
[333004819,1721740270450,-500.0,0.00014794,2]
[333004820,1721740270459,-1003.78,0.00014794,2]
[333004821,1721740270469,-500.0,0.00014794,2]
[333004822,1721740270478,-500.0,0.00014794,2]
[333004823,1721740270488,-500.0,0.00014794,2]
[333004824,1721740270499,-500.0,0.00014794,2]
[333004825,1721740270510,-457.81825302,0.00014794,2]
[333004826,1721740270520,-296.90256413,0.00014794,2]
[333004827,1721740270531,-500.0,0.00014794,2]
[333004828,1721740270541,-500.0,0.00014794,2]
[333004829,1721740270552,-500.0,0.00014794,2]
[333004830,1721740270562,-333.58264193,0.00014794,2]
[333004831,1721740270572,-500.0,0.00014794,2]
[333004832,1721740270581,-500.0,0.00014794,2]
[333004833,1721740270590,-500.0,0.00014794,2]
[333004834,1721740270599,-500.0,0.00014794,2]
[333004835,1721740270609,-500.0,0.00014794,2]
[333004836,1721740270618,-500.0,0.00014794,2]
[333004837,1721740270628,-345.56143533,0.00014794,2]
[333004838,1721740270638,-500.0,0.00014794,2]